bitfinex/quotes_ETHUSD_20241204
["timestamp","ask_amount","ask_price","bid_price","bid_amount"]
[1733354056055,5.18027962,3860.1,3860.0,6.76057]
[1733354056495,5.18027962,3860.1,3860.0,3.76057]
[1733354057079,5.18027962,3860.1,3860.0,4.31057]
[1733354057390,3.33,3861.0,3860.2,3.14053]
[1733354057391,5.36476962,3860.3,3860.2,3.14053]
[1733354057554,5.36476962,3860.3,3860.2,16.290567]
[1733354057758,5.36476962,3860.3,3860.2,18.454874]
[1733354057956,5.36476962,3860.3,3860.2,11.689378]
[1733354058171,0.18380962,3860.3,3860.2,7.27533]
[1733354059872,3.51380962,3860.3,3860.2,7.27533]
[1733354061605,3.51380962,3860.3,3860.2,6.14053]
[1733354061967,6.84380962,3860.3,3860.2,6.14053]
[1733354062706,6.84380962,3860.3,3860.2,3.14053]
[1733354063268,3.33,3860.8,3860.7,2.5902]
[1733354063565,3.33,3860.8,3860.7,5.0891492]
[1733354063793,3.33,3860.8,3860.7,8.0891492]
[1733354064378,2.99936,3860.8,3860.7,8.0891492]
[1733354064599,1.70429,3860.8,3860.7,7.66587587]
[1733354064913,1.70429,3860.8,3860.7,8.0891492]
[1733354065881,1.70429,3860.8,3860.7,7.66587587]
[1733354066620,1.70429,3860.8,3860.7,7.2575]
[1733354066820,5.03429,3860.8,3860.7,7.2575]
[1733354066988,5.03429,3860.8,3860.7,8.07890309]
[1733354067188,5.03429,3860.8,3860.7,7.65562976]
[1733354068342,3.96379,3860.8,3860.7,7.65562976]
[1733354068486,0.6473,3860.8,3860.7,31.79852096]
[1733354068831,2.4289,3861.0,3860.9,1.727]
[1733354068984,1.0417,3861.0,3860.9,2.05399917]
[1733354069188,3.33,3861.5,3861.0,3.55]
[1733354069390,3.33,3861.5,3861.0,0.55]
[1733354069580,3.33,3861.5,3861.0,3.55]
[1733354069995,3.33,3861.5,3861.0,0.92260384]
[1733354070221,3.33,3861.5,3861.0,3.92260384]
[1733354070779,3.33,3861.5,3861.0,0.92260384]
[1733354071020,3.33,3861.5,3861.0,0.55]
[1733354071781,6.66,3861.2,3861.0,0.55]
[1733354073136,6.66,3861.2,3861.1,0.94467927]
[1733354073838,6.66,3861.2,3860.9,1.177]
[1733354073839,6.66,3861.2,3861.0,0.55]
[1733354074200,9.99,3861.2,3861.0,0.55]
[1733354074844,9.99,3861.2,3861.0,0.94467927]
[1733354075003,9.99,3861.2,3861.1,0.94467927]
[1733354075341,9.99,3861.2,3861.1,1.35625921]
[1733354075945,9.99,3861.2,3861.1,0.94467927]
[1733354076110,9.99,3861.2,3861.1,0.55]
[1733354076546,9.99,3861.2,3861.1,1.32992278]
[1733354076836,13.32,3861.2,3861.1,1.32992278]
[1733354077198,13.32,3861.2,3861.1,0.96157994]
[1733354077839,13.32,3861.2,3861.0,0.55]
[1733354078141,13.32,3861.2,3861.0,1.32992278]
[1733354078512,13.32,3861.2,3861.0,4.32992278]
[1733354078737,13.32,3861.2,3861.0,0.55]
[1733354078947,13.32,3861.2,3861.0,3.91834284]
[1733354079241,13.32,3861.2,3861.0,3.55]
[1733354079242,16.65,3861.2,3861.0,3.55]
[1733354079463,16.65,3861.2,3861.0,0.55]
[1733354081242,16.65,3861.2,3861.0,0.91834284]
[1733354081447,16.65,3861.2,3861.0,0.55]
[1733354081628,19.98,3861.2,3861.0,0.55]
[1733354082249,19.98,3861.2,3860.8,3.0]
[1733354082414,19.98,3861.2,3860.6,3.96657436]
[1733354082599,19.98,3861.2,3860.6,0.96657436]
[1733354082800,19.98,3861.2,3860.6,0.52673227]
[1733354083012,19.98,3861.2,3860.7,5.06400611]
[1733354083213,19.98,3861.2,3860.7,8.29203804]
[1733354083422,19.98,3861.2,3860.8,0.55]
[1733354083629,19.98,3861.2,3860.9,0.36834284]
[1733354083832,19.98,3861.2,3861.0,0.55]
[1733354084124,23.31,3861.2,3861.0,0.91834284]
[1733354084310,23.31,3861.2,3861.1,0.55]
[1733354085241,23.31,3861.2,3860.8,0.55]
[1733354085443,23.31,3861.2,3860.8,0.91834284]
[1733354086407,26.64,3861.2,3861.0,0.55]
[1733354087351,1.3582,3861.1,3860.7,3.0]
[1733354087646,26.64,3861.2,3860.7,0.36834284]
[1733354087849,26.64,3861.2,3860.6,6.7547642]
[1733354088207,26.64,3861.2,3860.6,3.52673227]
[1733354088408,26.64,3861.2,3860.7,0.36834284]
[1733354088656,26.64,3861.2,3860.8,0.55]
[1733354088949,29.97,3861.2,3860.9,0.55]
[1733354091050,29.97,3861.2,3861.1,0.55]
[1733354091357,33.3,3861.2,3861.1,0.55]
[1733354091644,33.3,3861.2,3861.1,3.78207892]
[1733354091943,33.3,3861.2,3861.1,3.55]
[1733354092464,33.3,3861.2,3861.1,6.78207892]
[1733354092747,33.3,3861.2,3861.0,0.55]
[1733354093246,33.3,3861.2,3861.1,0.36834284]
[1733354093452,33.3,3861.2,3861.1,0.91834284]
[1733354093749,36.63,3861.2,3861.1,3.55]
[1733354094757,36.63,3861.2,3861.1,7.32878078]
[1733354095612,36.63,3861.2,3861.1,0.55]
[1733354095813,36.63,3861.2,3861.0,0.55]
[1733354096047,39.96,3861.2,3861.0,0.55]
[1733354097752,39.96,3861.2,3861.1,0.55]
[1733354098054,39.96,3861.2,3861.0,0.55]
[1733354098345,43.29,3861.2,3861.1,3.55]
[1733354098554,43.29,3861.2,3861.1,4.27582201]
[1733354098916,43.29,3861.2,3861.1,10.14999742]
[1733354099418,43.29,3861.2,3861.1,5.31894284]
[1733354099847,43.29,3861.2,3861.1,9.79251825]
[1733354100026,43.29,3861.2,3861.1,3.91834284]
[1733354100227,43.29,3861.2,3861.1,4.0740633]
[1733354100426,43.29,3861.2,3861.1,1.0740633]
[1733354100752,46.62,3861.2,3861.1,1.0740633]
[1733354101156,46.16619359,3861.2,3861.1,1.0740633]
[1733354101317,44.36319359,3861.2,3861.1,5.4095633]
[1733354101517,37.33739359,3861.2,3861.1,5.77221614]
[1733354102256,36.80819359,3861.2,3861.1,5.77221614]
[1733354102749,36.80819359,3861.2,3861.1,3.55]
[1733354102960,40.78211389,3861.2,3861.1,0.55]
[1733354103128,38.18609359,3861.2,3861.0,0.55]
[1733354103352,41.51609359,3861.2,3861.0,0.55]
[1733354103945,40.13819359,3861.2,3861.0,0.55]
[1733354104293,40.13819359,3861.2,3861.1,3.90254649]
[1733354104444,40.13819359,3861.2,3861.1,8.74285761]
[1733354104646,39.06769359,3861.2,3861.1,29.98798113]
[1733354104953,39.06769359,3861.2,3861.1,1.26519933]
[1733354105151,39.06769359,3861.2,3861.1,0.91265284]
[1733354105779,42.39769359,3861.2,3861.1,0.91265284]
[1733354105986,41.61619359,3861.2,3861.1,0.91265284]
[1733354106182,41.06489359,3861.2,3861.1,0.91265284]
[1733354106354,40.45109359,3861.2,3861.1,1.35344373]
[1733354106559,38.05399359,3861.2,3861.1,22.99743973]
[1733354107152,38.05399359,3861.2,3861.1,27.68589936]
[1733354107347,38.05399359,3861.2,3861.1,4.35344373]
[1733354107651,38.05399359,3861.2,3861.1,1.35344373]
[1733354108149,41.38399359,3861.2,3861.1,0.91265284]
[1733354108781,41.38399359,3861.2,3861.1,18.70569347]
[1733354108986,41.38399359,3861.2,3861.1,9.25066147]
[1733354109170,41.38399359,3861.2,3861.1,0.55]
[1733354109901,41.38399359,3861.2,3861.1,20.58428896]
[1733354110191,41.38399359,3861.2,3861.1,19.0493946]
[1733354110345,40.42676359,3861.2,3861.1,20.5549946]
[1733354110544,43.37000345,3861.2,3861.1,20.88401392]
[1733354110920,43.01800345,3861.2,3861.1,18.33730284]
[1733354111497,43.01800345,3861.2,3861.1,18.98341457]
[1733354111911,42.56520345,3861.2,3861.1,18.98341457]
[1733354112601,42.56520345,3861.2,3861.1,15.81351352]
[1733354112763,41.11064379,3861.2,3861.1,15.81351352]
[1733354112968,44.44064379,3861.2,3861.1,15.81351352]
[1733354113168,44.44064379,3861.2,3861.1,4.60106568]
[1733354113394,44.44064379,3861.2,3861.1,27.33903092]
[1733354113713,44.44064379,3861.2,3861.1,13.66317641]
[1733354114005,44.44064379,3861.2,3861.1,6.49928236]
[1733354114379,41.79454379,3861.2,3861.1,7.24928236]
[1733354114624,38.64294379,3861.2,3861.1,7.24928236]
[1733354114780,38.64294379,3861.2,3861.1,6.54439236]
[1733354115095,38.64294379,3861.2,3861.1,3.31033536]
[1733354115305,38.64294379,3861.2,3860.9,1.21637437]
[1733354115488,41.97294379,3861.2,3861.1,5.37468539]
[1733354115808,41.97294379,3861.2,3860.9,6.97701644]
[1733354115982,41.97294379,3861.2,3860.9,1.60233105]
[1733354116181,41.97294379,3861.2,3860.9,6.97701644]
[1733354116727,41.97294379,3861.2,3861.0,13.15250068]
[1733354116872,41.97294379,3861.2,3861.1,11.248524]
[1733354117076,41.97294379,3861.2,3861.1,10.429993]
[1733354117420,41.97294379,3861.2,3861.1,12.58789573]
[1733354117590,41.97294379,3861.2,3861.1,11.24240103]
[1733354117915,41.97294379,3861.2,3861.1,7.34613635]
[1733354118114,45.30294379,3861.2,3861.1,0.55]
[1733354118492,45.30294379,3861.2,3861.0,0.55]
[1733354119308,45.30294379,3861.2,3861.0,0.93595668]
[1733354119911,45.30294379,3861.2,3860.9,6.33251072]
[1733354119912,45.30294379,3861.2,3861.1,0.93595668]
[1733354120386,45.30294379,3861.2,3861.1,16.75310468]
[1733354120720,48.63294379,3861.2,3861.1,19.69967868]
[1733354121009,48.63294379,3861.2,3861.1,4.30083268]
[1733354121214,48.63294379,3861.2,3861.1,2.98193268]
[1733354121377,48.63294379,3861.2,3861.1,0.93595668]
[1733354121570,48.63294379,3861.2,3861.1,3.10563268]
[1733354121768,48.63294379,3861.2,3861.1,3.07128268]
[1733354122170,48.63294379,3861.2,3861.1,0.93595668]
[1733354122907,48.63294379,3861.2,3861.1,5.41368617]
[1733354123109,51.96294379,3861.2,3861.1,5.41368617]
[1733354124009,51.96294379,3861.2,3861.1,5.41359933]
[1733354124331,51.96294379,3861.2,3861.1,16.33374759]
[1733354124478,51.96294379,3861.2,3861.1,13.53320903]
[1733354124873,51.96294379,3861.2,3861.1,15.17935459]
[1733354125075,51.96294379,3861.2,3861.1,15.17401618]
[1733354125498,55.29294379,3861.2,3861.1,14.84677062]
[1733354125696,52.64417084,3861.2,3861.1,14.84677062]
[1733354125929,51.73717084,3861.2,3861.1,14.84677062]
[1733354126088,51.73717084,3861.2,3861.1,9.47727268]
[1733354127030,51.41127084,3861.2,3861.1,9.47727268]
[1733354127383,51.06467615,3861.2,3861.1,9.47727268]
[1733354127587,51.06467615,3861.2,3861.1,10.33896681]
[1733354127989,54.39467615,3861.2,3861.1,10.33896681]
[1733354128228,54.01507615,3861.2,3861.1,10.33896681]
[1733354128596,50.73527615,3861.2,3861.1,10.33896681]
[1733354129227,49.72133615,3861.2,3861.1,10.33896681]
[1733354129931,49.18543615,3861.2,3861.1,10.33896681]
[1733354130147,44.72591093,3861.2,3861.1,10.33896681]
[1733354130310,47.34032247,3861.2,3861.1,10.43896681]
[1733354130626,38.29108688,3861.2,3861.1,10.43896681]
[1733354130831,27.7874581,3861.2,3861.1,10.43896681]
[1733354130996,18.60673442,3861.2,3861.1,10.43896681]
[1733354131192,14.17293442,3861.2,3861.1,10.43896681]
[1733354131408,4.4338,3861.2,3861.1,10.43896681]
[1733354131590,4.2135,3861.2,3861.1,10.43896681]
[1733354132151,0.2203,3861.2,3861.1,10.43896681]
[1733354132607,0.2203,3861.2,3861.1,13.18026681]
[1733354132802,3.33,3861.2,3861.1,12.90387268]
[1733354133006,2.55185682,3861.2,3861.1,13.15288142]
[1733354133239,2.54855329,3861.2,3861.1,16.94956075]
[1733354133535,2.54855329,3861.2,3861.1,12.27221717]
[1733354134329,2.54855329,3861.2,3861.1,12.62122591]
[1733354134502,2.54855329,3861.2,3861.1,12.72122591]
[1733354134707,2.54855329,3861.2,3861.1,13.27122591]
[1733354135037,2.30055329,3861.2,3861.1,13.27122591]
[1733354135206,5.63055329,3861.2,3861.1,13.27122591]
[1733354135530,5.06465329,3861.2,3861.1,13.27122591]
[1733354135905,4.57145329,3861.2,3861.1,13.27122591]
[1733354136244,4.21708277,3861.2,3861.1,13.27122591]
[1733354136532,4.21708277,3861.2,3861.1,13.17122591]
[1733354136832,3.69688277,3861.2,3861.1,13.17122591]
[1733354137719,7.02688277,3861.2,3861.1,12.82221717]
[1733354137913,7.02688277,3861.2,3861.1,7.82671717]
[1733354138141,6.84650392,3861.2,3861.1,4.300656]
[1733354138312,6.84650392,3861.2,3861.1,2.5699]
[1733354138511,6.84650392,3861.2,3860.6,5.65566974]
[1733354138730,6.84650392,3861.2,3860.6,0.29933783]
[1733354139232,6.84650392,3861.2,3860.7,0.38252834]
[1733354140131,10.17650392,3861.2,3860.7,0.38252834]
[1733354140330,1.3959,3861.1,3860.4,2.59036]
[1733354141792,1.3959,3861.1,3859.9,0.29479122]
[1733354141967,1.3959,3861.1,3859.9,0.65278623]
[1733354142369,1.3959,3861.1,3860.0,0.35799501]
[1733354142577,1.5115,3861.0,3860.0,0.35799501]
[1733354143186,3.01330039,3861.0,3860.0,0.35799501]
[1733354143389,3.01330039,3861.0,3859.3,1.3788]
[1733354143390,1.45607512,3860.9,3859.4,5.78347199]
[1733354143598,1.4237,3860.9,3859.2,5.65112313]
[1733354143757,1.4237,3860.9,3859.4,0.88066299]
[1733354143953,3.06690043,3860.9,3859.5,0.35799501]
[1733354144148,3.06690043,3860.9,3859.4,0.8174592]
[1733354144149,1.3927,3860.7,3859.4,0.8174592]
[1733354144378,1.3927,3860.7,3859.4,1.17545421]
[1733354144599,1.3927,3860.7,3859.5,0.35799501]
[1733354144759,1.3927,3860.7,3859.6,0.55]
[1733354144948,1.3927,3860.6,3859.6,0.35799501]
[1733354145156,1.3927,3860.6,3859.7,0.55]
[1733354145568,1.3927,3860.6,3859.8,0.35799501]
[1733354145764,1.3927,3860.6,3859.9,0.55]
[1733354146463,1.3927,3860.6,3860.1,0.55]
[1733354147071,1.3927,3860.6,3860.1,1.06059602]
[1733354147459,4.7227,3860.6,3860.1,1.06059602]
[1733354148491,1.4574,3860.5,3860.1,1.06059602]
[1733354149956,4.7874,3860.5,3860.1,1.06059602]
[1733354151995,4.7874,3860.5,3859.8,0.55]
[1733354152242,4.7874,3860.5,3859.9,0.35799501]
[1733354152403,8.1174,3860.5,3860.0,0.55]
[1733354152693,8.1174,3860.5,3860.1,0.52870089]
[1733354152905,8.1174,3860.5,3860.2,0.55]
[1733354153401,6.66,3860.5,3860.2,1.29518871]
[1733354154178,6.66,3860.5,3860.4,3.55]
[1733354154378,6.66,3860.5,3860.4,18.70352093]
[1733354154581,3.33,3861.1,3860.4,16.86321293]
[1733354154803,3.33,3861.1,3860.6,3.55]
[1733354155010,3.33,3861.1,3860.9,0.55]
[1733354155192,3.33,3861.1,3861.0,23.842619]
[1733354155518,3.33,3861.1,3861.0,13.86528399]
[1733354155872,2.09950001,3861.1,3861.0,13.31147693]
[1733354156372,1.20120001,3861.1,3861.0,13.31147693]
[1733354156578,0.37430001,3861.1,3861.0,13.31147693]
[1733354157110,0.37430001,3861.1,3861.0,9.77154293]
[1733354157322,3.70430001,3861.1,3861.0,9.77154293]
[1733354157490,3.70430001,3861.1,3861.0,10.2901074]
[1733354158314,2.63380001,3861.1,3861.0,10.2901074]
[1733354158613,1.56330001,3861.1,3861.0,10.2901074]
[1733354158974,0.49280001,3861.1,3861.0,10.2901074]
[1733354159174,0.17160002,3861.1,3861.0,10.2901074]
[1733354159610,9.34820392,3861.2,3861.1,3.84479122]
[1733354159774,9.34820392,3861.2,3861.1,27.98222521]
[1733354159975,9.34820392,3861.2,3861.1,20.10812221]
[1733354160413,8.30390392,3861.2,3861.1,21.50152221]
[1733354160619,8.30390392,3861.2,3861.1,20.37833921]
[1733354161405,8.30390392,3861.2,3861.1,5.61558421]
[1733354161617,8.30390392,3861.2,3861.1,22.30006721]
[1733354161818,8.30390392,3861.2,3861.1,14.34769521]
[1733354161979,8.30390392,3861.2,3861.1,11.85057722]
[1733354162173,11.63390392,3861.2,3861.1,11.85057722]
[1733354162390,11.63390392,3861.2,3861.1,3.0]
[1733354162574,11.63390392,3861.2,3861.0,0.51856447]
[1733354163091,1.5182,3861.1,3861.0,0.51856447]
[1733354163290,1.5182,3861.1,3860.4,0.29392139]
[1733354163517,1.5182,3861.1,3860.9,0.52513185]
[1733354164278,1.5182,3861.1,3861.0,0.55]
[1733354164674,4.8482,3861.1,3861.0,0.55]
[1733354164877,3.33,3861.1,3861.0,9.47824117]
[1733354165318,3.33,3861.1,3861.0,10.21464245]
[1733354165923,1.95040001,3861.1,3861.0,10.21464245]
[1733354166619,1.95040001,3861.1,3861.0,9.87078545]
[1733354166794,1.95040001,3861.1,3861.0,9.49430825]
[1733354166995,5.28040001,3861.1,3861.0,7.74471436]
[1733354167330,5.28040001,3861.1,3861.0,1.19613036]
[1733354167625,5.28040001,3861.1,3860.9,0.96699956]
[1733354167626,6.78830001,3861.1,3860.9,0.52513185]
[1733354168728,3.35012039,3861.0,3860.9,0.52513185]
[1733354168884,1.5079,3861.0,3859.4,0.2]
[1733354169204,1.5079,3861.0,3859.5,0.02589998]
[1733354169416,3.33,3861.0,3860.6,0.51699525]
[1733354169610,1.5079,3860.9,3860.6,0.51699525]
[1733354170083,1.5079,3860.9,3859.5,0.02589998]
[1733354170279,1.5079,3860.9,3860.1,0.52289136]
[1733354170485,1.6465,3860.8,3860.2,0.55]
[1733354171212,1.6465,3860.8,3860.1,0.52289136]
[1733354172046,1.5784,3860.7,3860.1,0.52289136]
[1733354172689,1.5784,3860.7,3860.2,0.55]
[1733354174396,4.9084,3860.7,3860.2,0.55]
[1733354176890,8.2384,3860.7,3860.2,0.55]
[1733354177790,8.2384,3860.7,3860.0,0.55]
[1733354179207,1.5686,3860.6,3860.0,0.55]
[1733354181762,1.5686,3860.6,3859.3,0.43733135]
[1733354181763,1.60097983,3860.5,3859.3,0.43733135]
[1733354181914,1.5686,3860.5,3859.3,0.43733135]
[1733354182109,1.5686,3860.5,3859.2,0.51998912]
[1733354182865,1.5686,3860.5,3859.3,5.13120691]
[1733354183149,1.5686,3860.5,3859.3,5.68068595]
[1733354183312,1.5686,3860.5,3859.3,5.88068595]
[1733354183516,3.33,3860.6,3859.6,0.55]
[1733354183745,3.33,3860.6,3859.9,0.55]
[1733354184055,3.33,3860.6,3860.1,3.55]
[1733354184210,6.66,3860.6,3860.5,0.55]
[1733354184412,6.66,3860.6,3860.5,23.388458]
[1733354184939,6.3478125,3860.6,3860.5,25.143758]
[1733354185154,6.3478125,3860.6,3860.5,25.42131447]
[1733354185856,6.14944335,3860.6,3860.5,25.42131447]
[1733354186312,5.79419137,3860.6,3860.5,25.42131447]
[1733354186512,9.12419137,3860.6,3860.5,25.42131447]
[1733354186714,9.12419137,3860.6,3860.5,25.08439547]
[1733354186916,8.96380519,3860.6,3860.5,25.08439547]
[1733354187112,8.96380519,3860.6,3860.5,24.88439547]
[1733354187350,8.96380519,3860.6,3860.5,9.31315347]
[1733354187551,8.96380519,3860.6,3860.5,6.18505]
[1733354187754,8.96380519,3860.6,3860.5,3.0]
[1733354187953,8.96380519,3860.6,3860.4,0.51740237]
[1733354188153,1.6256,3860.5,3860.4,0.51740237]
[1733354188723,8.96380519,3860.6,3860.4,0.51740237]
[1733354189121,12.29380519,3860.6,3860.4,0.51740237]
[1733354189561,12.29380519,3860.6,3860.5,14.847698]
[1733354190059,12.29380519,3860.6,3860.5,15.397698]
[1733354190274,11.25647528,3860.6,3860.5,15.397698]
[1733354191620,14.58647528,3860.6,3860.5,15.397698]
[1733354193140,14.14489252,3860.6,3860.5,15.397698]
[1733354193577,14.14489252,3860.6,3860.5,36.348724]
[1733354193758,14.14489252,3860.6,3860.5,34.484529]
[1733354194269,17.47489252,3860.6,3860.5,23.96677]
[1733354195350,16.53386953,3860.6,3860.5,23.96677]
[1733354196127,15.13465231,3860.6,3860.5,23.96677]
[1733354196331,12.66019033,3860.6,3860.5,25.73057]
[1733354196534,15.99019033,3860.6,3860.5,26.32865264]
[1733354197025,15.99019033,3860.6,3860.5,25.99782547]
[1733354197223,15.99019033,3860.6,3860.5,25.79782547]
[1733354198678,15.99019033,3860.6,3860.5,25.53057]
[1733354198879,19.32019033,3860.6,3860.5,25.53057]
[1733354199422,19.32019033,3860.6,3860.5,20.196371]
[1733354200300,19.32019033,3860.6,3860.5,20.52719817]
[1733354201507,22.65019033,3860.6,3860.5,20.52719817]
[1733354202299,22.65019033,3860.6,3860.5,17.52719817]
[1733354202485,22.65019033,3860.6,3860.5,17.455071]
[1733354203488,22.65019033,3860.6,3860.5,17.196371]
[1733354203885,25.98019033,3860.6,3860.5,17.196371]
[1733354205017,25.98019033,3860.6,3860.5,20.196371]
[1733354206201,29.31019033,3860.6,3860.5,20.196371]
[1733354207434,29.31019033,3860.6,3860.5,20.50015296]
[1733354207649,29.31019033,3860.6,3860.5,20.196371]
[1733354208348,29.31019033,3860.6,3860.4,0.55]
[1733354208642,29.31019033,3860.6,3860.5,51.05]
[1733354208798,32.64019033,3860.6,3860.5,54.05]
[1733354211310,35.97019033,3860.6,3860.5,54.05]
[1733354212096,37.53639033,3860.6,3860.5,50.5]
[1733354212295,1.5662,3860.5,3860.0,0.43370747]
[1733354212923,1.5662,3860.5,3859.2,0.02590274]
[1733354213244,1.5662,3860.5,3859.4,1.8157]
[1733354213396,35.97019033,3860.6,3859.6,3.0]
[1733354213591,35.97019033,3860.6,3859.8,3.0]
[1733354213797,39.30019033,3860.6,3860.0,3.0]
[1733354213996,39.30019033,3860.6,3860.2,3.0]
[1733354214218,39.30019033,3860.6,3860.3,32.225424]
[1733354214454,39.30019033,3860.6,3860.4,3.55]
[1733354214608,39.30019033,3860.6,3860.5,28.264712]
[1733354216420,42.47019033,3860.6,3860.5,28.264712]
[1733354216624,39.96669034,3860.6,3860.5,28.264712]
[1733354216847,34.92879034,3860.6,3860.5,28.264712]
[1733354217148,27.28511985,3860.6,3860.5,30.05802271]
[1733354217523,25.62841986,3860.6,3860.5,30.05802271]
[1733354217904,23.43011986,3860.6,3860.5,30.05802271]
[1733354218212,20.81341986,3860.6,3860.5,30.05802271]
[1733354218411,19.66261986,3860.6,3860.5,30.05802271]
[1733354218613,19.01581986,3860.6,3860.5,30.05802271]
[1733354218846,22.34581986,3860.6,3860.5,30.05802271]
[1733354219305,16.61951986,3860.6,3860.5,30.05802271]
[1733354219506,14.24171987,3860.6,3860.5,30.05802271]
[1733354219707,11.21721988,3860.6,3860.5,30.37230467]
[1733354219964,7.57891988,3860.6,3860.5,30.37230467]
[1733354220144,7.00351988,3860.6,3860.5,30.37230467]
[1733354220304,6.40300578,3860.6,3860.5,30.70302755]
[1733354220846,6.40300578,3860.6,3860.5,13.442463]
[1733354221054,6.40300578,3860.6,3860.5,11.355063]
[1733354221206,9.73300578,3860.6,3859.9,1.5529]
[1733354221412,9.73300578,3860.6,3859.8,0.24032776]
[1733354221413,1.6633,3860.5,3860.0,17.498929]
[1733354221609,1.6633,3860.5,3859.9,47.638986]
[1733354222008,1.6633,3860.5,3859.9,47.95326796]
[1733354222211,1.6633,3860.5,3860.0,35.657392]
[1733354222431,1.6633,3860.5,3860.1,3.0]
[1733354222634,1.6633,3860.5,3860.1,39.621981]
[1733354222830,1.6633,3860.5,3860.2,36.436642]
[1733354223030,1.6633,3860.5,3860.3,3.0]
[1733354223206,1.6633,3860.5,3860.4,29.661939]
[1733354223416,9.73300578,3860.6,3860.5,3.0]
[1733354223651,9.73300578,3860.6,3860.5,18.273952]
[1733354223813,9.73300578,3860.6,3860.5,11.256208]
[1733354225652,9.73300578,3860.6,3859.8,0.24032776]
[1733354225653,11.32340578,3860.6,3859.8,0.24032776]
[1733354225820,1.5904,3860.5,3859.2,1.6563]
[1733354226010,1.5904,3860.5,3859.2,1.91569312]
[1733354226412,1.5904,3860.5,3859.3,32.68816553]
[1733354226646,1.5904,3860.5,3859.4,42.28462648]
[1733354226864,1.5904,3860.5,3859.5,38.68589136]
[1733354227008,1.5904,3860.5,3859.6,43.69174948]
[1733354227215,1.5904,3860.5,3859.8,3.55]
[1733354227451,1.5904,3860.5,3860.0,3.55]
[1733354227613,1.5904,3860.5,3860.2,3.55]
[1733354227812,1.5904,3860.5,3860.4,3.55]
[1733354228114,1.5904,3860.5,3860.4,17.873275]
[1733354228315,1.5904,3860.5,3860.4,0.55]
[1733354228542,5.3342469,3860.5,3860.4,0.55]
[1733354228715,4.9204,3860.5,3860.4,0.55]
[1733354228920,1.5501,3860.4,3859.4,0.2587]
[1733354229716,1.5501,3860.4,3859.6,0.2587]
[1733354229947,1.5501,3860.4,3859.7,36.94980214]
[1733354230248,1.5501,3860.4,3859.9,3.0]
[1733354230437,1.5501,3860.4,3860.1,3.0]
[1733354230750,1.5501,3860.4,3860.3,3.0]
[1733354230951,4.8801,3860.4,3860.3,5.9877]
[1733354231252,3.33,3860.4,3859.4,0.55]
[1733354231418,1.5296,3860.3,3859.4,0.55]
[1733354233458,4.8596,3860.3,3859.4,0.55]
[1733354234719,4.8596,3860.3,3859.6,3.55]
[1733354234915,4.8596,3860.3,3859.8,3.55]
[1733354235119,3.33,3860.3,3860.0,3.55]
[1733354235333,1.6387,3860.2,3859.4,0.55]
[1733354235921,1.5231,3860.1,3859.4,0.55]
[1733354238447,1.5466,3860.0,3859.4,0.55]
[1733354240948,4.8766,3860.0,3859.4,0.55]
[1733354243151,8.2066,3860.0,3859.4,0.55]
[1733354245655,11.5366,3860.0,3859.4,0.55]
[1733354247001,11.5366,3860.0,3859.5,50.84806643]
[1733354247289,11.5366,3860.0,3859.6,9.354487]
[1733354247508,11.5366,3860.0,3859.8,3.55]
[1733354247786,11.5366,3860.0,3859.9,0.55]
[1733354247991,14.8666,3860.0,3859.9,0.55]
[1733354250075,14.8666,3860.0,3859.3,0.26773086]
[1733354250076,14.8666,3860.0,3859.4,0.55]
[1733354250291,13.32,3860.0,3859.4,0.55]
[1733354250463,1.6492,3859.9,3859.4,0.55]
[1733354250662,1.68158351,3859.8,3858.5,0.32215988]
[1733354251250,1.68158351,3859.8,3858.1,0.2677624]
[1733354253092,1.5228,3859.1,3856.2,1.6489]
[1733354253291,0.1,3859.2,3856.9,0.26782462]
[1733354253292,1.5228,3858.9,3856.9,0.26782462]
[1733354253496,1.5228,3858.7,3856.3,0.02592116]
[1733354253710,1.5228,3858.5,3856.8,0.2678493]
[1733354254003,1.5228,3858.5,3856.3,0.57799874]
[1733354254188,1.5228,3858.5,3856.4,0.02591934]
[1733354254393,1.5228,3858.5,3856.8,0.26785012]
[1733354254594,1.5228,3858.5,3856.4,0.34653569]
[1733354254793,1.5228,3858.5,3856.9,0.32061635]
[1733354255305,1.5228,3858.5,3856.9,0.55]
[1733354255526,1.6399,3858.4,3856.9,0.55]
[1733354255810,1.6399,3858.4,3856.9,0.87061635]
[1733354255971,1.6399,3858.4,3856.9,0.55]
[1733354256491,1.6399,3858.3,3856.9,0.55]
[1733354256692,1.53890178,3858.2,3856.9,0.55]
[1733354257208,1.66039018,3858.1,3856.9,0.55]
[1733354257511,1.53890346,3858.0,3856.9,0.55]
[1733354257870,1.5065,3857.9,3856.9,0.55]
[1733354258075,1.5065,3857.7,3856.9,0.55]
[1733354259586,1.53890351,3857.6,3856.8,0.2678536]
[1733354259780,1.66039035,3857.6,3856.1,0.43389485]
[1733354259981,1.5065,3857.6,3856.1,0.43389485]
[1733354260325,1.5065,3857.4,3856.1,0.43389485]
[1733354260501,1.5065,3857.4,3856.2,0.02592619]
[1733354260672,0.5997,3857.4,3856.2,0.31139129]
[1733354260869,0.40053,3857.4,3856.3,0.55]
[1733354261073,0.33414,3857.4,3856.4,40.1177852]
[1733354261273,0.33414,3857.4,3856.5,25.614703]
[1733354261516,0.33414,3857.4,3856.7,3.55]
[1733354261685,0.33414,3857.4,3856.7,0.55]
[1733354262887,3.66414,3857.4,3856.7,0.55]
[1733354264393,3.33,3857.4,3856.7,0.55]
[1733354264611,1.55010762,3857.3,3856.7,0.55]
[1733354264780,1.5177,3857.3,3856.0,0.26788399]
[1733354264982,1.5177,3857.3,3856.1,0.55]
[1733354265192,1.5177,3857.2,3856.1,0.55]
[1733354265403,1.5258,3857.0,3856.1,0.55]
[1733354267718,1.5258,3857.0,3856.0,0.26788399]
[1733354267719,1.5258,3856.9,3856.0,0.26788399]
[1733354267923,1.55821067,3856.9,3854.9,2.261]